[Event "VIII Open Semana Santa-B 2024"]
[Site "San Vicente del Raspeig"]
[Date "2024.03.31"]
[Round "8.6"]
[White "Latre Rodriguez, Francisco"]
[Black "Torralba Brosa, Marc"]
[Result "1-0"]
[ECO "B31"]
[WhiteElo "1780"]
[BlackElo "1869"]
[Annotator "NA RC COMBH"]
[PlyCount "59"]
[EventDate "2024.03.27"]
[EventType "swiss"]
[EventCountry "ESP"]
[SourceTitle "playchess.com"]
[Source "ChessBase"]
[SourceQuality "1"]
[TimeControl "5400+30"]

1. e4 {[%emt 0:00:01]} c5 {[%emt 0:00:05]} 2. Nf3 {[%emt 0:00:05]} Nc6 {[%emt 0:00:05]} 3. c3 {[%emt 0:00:05]} Nf6 {[%emt 0:00:04]} 4. e5 {[%emt 0:00:06]} Nd5 {[%emt 0:00:01]} 5. d4 {[%emt 0:00:15]} cxd4 {[%emt 0:00:06]} 6. cxd4 {[%emt 0:00:03]} d6 {[%emt 0:00:10]} 7. h3 {[%emt 0:00:36]} g6 {[%emt 0:01:14]} 8. Bb5 {[%emt 0:02:12]} Bg7 {[%emt 0:00:34]} 9. O-O {[%emt 0:00:44]} O-O {[%emt 0:00:09]} 10. Re1 {[%emt 0:00:47]} a6 {[%emt 0:01:01]} 11. Bxc6 {[%emt 0:00:44]} bxc6 {[%emt 0:00:08]} 12. Nc3 {[%emt 0:00:12]} Nxc3 {[%emt 0:03:40]} 13. bxc3 {[%emt 0:00:02]} c5 {[%emt 0:00:34]} 14. Be3 {[%emt 0:02:03]} Qa5 {[%emt 0:01:41]} 15. dxc5 {[%emt 0:05:19]} dxe5 {[%emt 0:00:01]} 16. Qb3 {[%emt 0:06:02]} Be6 {[%emt 0:02:10]} 17. Qb4 {[%emt 0:00:29]} Qb5 {[%emt 0:02:17]} 18. a3 {[%emt 0:03:52]} Rab8 {[%emt 0:01:25]} 19. Rab1 {[%emt 0:02:06]} Bf5 {[%emt 0:02:50]} 20. Qxb5 {[%emt 0:00:38]} axb5 {[%emt 0:01:18]} 21. Rb4 {[%emt 0:01:00]} Bd3 {[%emt 0:01:19]} 22. Rd1 {[%emt 0:09:12]} Rfd8 {[%emt 0:00:36]} 23. Rd2 {[%emt 0:00:54]} Bc4 {[%emt 0:00:27]} 24. Rxd8+ {[%emt 0:00:30]} Rxd8 {[%emt 0:00:07]} 25. a4 {[%emt 0:00:27]} Rd1+ {[%emt 0:11:06]} 26. Kh2 {[%emt 0:00:16]} Be2 {[%emt 0:00:34]} 27. Rb2 {[%emt 0:11:25]} Bxf3 {[%emt 0:01:39]} 28. gxf3 {[%emt 0:00:08]} bxa4 {[%emt 0:00:40]} 29. Rb8+ {[%emt 0:00:18]} Bf8 {[%emt 0:00:38]} 30. Bh6 {[%emt 0:00:17]} 1-0

[Event "VIII Open Semana Santa-B 2024"]
[Site "San Vicente del Raspeig"]
[Date "2024.03.31"]
[Round "8.7"]
[White "Herrero Ferrando, Salvador"]
[Black "Galiana Fernandez, Hector"]
[Result "1-0"]
[ECO "D75"]
[WhiteElo "1854"]
[BlackElo "1754"]
[Annotator "NA COMBH"]
[PlyCount "61"]
[EventDate "2024.03.27"]
[EventType "swiss"]
[EventCountry "ESP"]
[SourceTitle "playchess.com"]
[Source "ChessBase"]
[SourceQuality "1"]
[TimeControl "5400+30"]

1. d4 {[%emt 0:00:10]} Nf6 {[%emt 0:00:20]} 2. c4 {[%emt 0:00:16]} g6 {[%emt 0:00:16]} 3. Nf3 {[%emt 0:00:12]} Bg7 {[%emt 0:00:40]} 4. g3 {[%emt 0:00:26]} O-O {[%emt 0:01:52]} 5. Bg2 {[%emt 0:00:09]} c5 {[%emt 0:04:41]} 6. Nc3 {[%emt 0:01:43]} d5 {[%emt 0:02:51]} 7. cxd5 {[%emt 0:15:47]} Nxd5 {[%emt 0:01:02]} 8. O-O {[%emt 0:00:46]} cxd4 {[%emt 0:02:35]} 9. Nxd4 {[%emt 0:01:10]} Nxc3 {[%emt 0:00:55]} 10. bxc3 {[%emt 0:00:36]} Qc7 {[%emt 0:02:56]} 11. Qb3 {[%emt 0:02:36]} Nd7 {[%emt 0:02:57]} 12. Rb1 {[%emt 0:10:30]} Ne5 {[%emt 0:13:01]} 13. Bf4 {[%emt 0:04:45]} a6 {[%emt 0:17:19]} 14. Rfc1 {[%emt 0:03:47]} Ra7 {[%emt 0:06:47]} 15. a4 {[%emt 0:04:24]} Qc5 {[%emt 0:05:09]} 16. Qb4 {[%emt 0:05:47]} Nd7 {[%emt 0:03:59]} 17. Be3 {[%emt 0:01:38]} Qxb4 {[%emt 0:03:03]} 18. Rxb4 {[%emt 0:04:35]} Nc5 {[%emt 0:06:07]} 19. Rcb1 {[%emt 0:18:17]} b6 {[%emt 0:06:54]} 20. Rc4 {[%emt 0:02:15]} Bd7 {[%emt 0:03:44]} 21. a5 {[%emt 0:02:54]} Na4 {[%emt 0:06:53]} 22. axb6 {[%emt 0:00:57]} Nxb6 {[%emt 0:00:08]} 23. Rxb6 {[%emt 0:00:17]} a5 {[%emt 0:07:51]} 24. Nc6 {[%emt 0:03:05]} Raa8 {[%emt 0:00:00]} 25. Nxe7+ {[%emt 0:00:16]} Kh8 {[%emt 0:00:00]} 26. Bxa8 {[%emt 0:00:16]} Rxa8 {[%emt 0:00:00]} 27. Bd4 {[%emt 0:02:11]} a4 {[%emt 0:00:00]} 28. Rb1 {[%emt 0:01:40]} a3 {[%emt 0:00:00]} 29. Ra1 {[%emt 0:00:43]} a2 {[%emt 0:00:00]} 30. Rb4 {[%emt 0:01:04]} Bxd4 {[%emt 0:00:00]} 31. cxd4 {[%emt 0:00:42]} 1-0

[Event "VIII Open Semana Santa-B 2024"]
[Site "San Vicente del Raspeig"]
[Date "2024.03.31"]
[Round "8.8"]
[White "Jayawarna, Thisumi"]
[Black "Herrera Pezo, Enoch"]
[Result "1-0"]
[ECO "A31"]
[WhiteElo "1774"]
[BlackElo "1831"]
[Annotator "NA RC COMBH"]
[PlyCount "83"]
[EventDate "2024.03.27"]
[EventType "swiss"]
[EventCountry "ESP"]
[SourceTitle "playchess.com"]
[Source "ChessBase"]
[SourceQuality "1"]
[TimeControl "5400+30"]

1. e4 {[%emt 0:00:03]} c5 {[%emt 0:00:16]} 2. Nf3 {[%emt 0:00:09]} e6 {[%emt 0:00:09]} 3. d4 {[%emt 0:00:08]} cxd4 {[%emt 0:00:08]} 4. Nxd4 {[%emt 0:00:13]} a6 {[%emt 0:00:09]} 5. c4 {[%emt 0:00:40]} Qc7 {[%emt 0:00:20]} 6. Nc3 {[%emt 0:00:53]} Nf6 {[%emt 0:00:16]} 7. Be2 {[%emt 0:01:49]} Be7 {[%emt 0:00:28]} 8. O-O {[%emt 0:00:51]} O-O {[%emt 0:00:10]} 9. Be3 {[%emt 0:01:34]} b6 {[%emt 0:01:16]} 10. f3 {[%emt 0:01:40]} d6 {[%emt 0:00:41]} 11. Qe1 {[%emt 0:01:35]} Nbd7 {[%emt 0:00:35]} 12. Qf2 {[%emt 0:01:20]} Bb7 {[%emt 0:01:44]} 13. Rac1 {[%emt 0:01:32]} Rac8 {[%emt 0:03:15]} 14. Rfd1 {[%emt 0:02:22]} Qb8 {[%emt 0:03:41]} 15. Nb3 {[%emt 0:05:48]} Bd8 {[%emt 0:08:14]} 16. Rd2 {[%emt 0:16:41]} Bc7 {[%emt 0:01:28]} 17. Kh1 {[%emt 0:02:56]} Qa8 {[%emt 0:03:25]} 18. Rcd1 {[%emt 0:05:01]} Rfd8 {[%emt 0:03:24]} 19. Bf4 {[%emt 0:08:05]} Qb8 {[%emt 0:07:10]} 20. Bxd6 {[%emt 0:10:50]} Ne5 {[%emt 0:04:42]} 21. Bxc7 {[%emt 0:03:17]} Qxc7 {[%emt 0:00:12]} 22. Rxd8+ {[%emt 0:00:53]} Rxd8 {[%emt 0:00:10]} 23. Rxd8+ {[%emt 0:01:05]} Qxd8 {[%emt 0:00:08]} 24. Qd4 {[%emt 0:00:32]} Qc7 {[%emt 0:00:53]} 25. c5 {[%emt 0:10:21]} b5 {[%emt 0:02:00]} 26. Qd6 {[%emt 0:02:03]} Qxd6 {[%emt 0:00:37]} 27. cxd6 {[%emt 0:00:07]} Nfd7 {[%emt 0:02:03]} 28. Na5 {[%emt 0:02:54]} Ba8 {[%emt 0:00:26]} 29. a4 {[%emt 0:01:12]} b4 {[%emt 0:03:08]} 30. Na2 {[%emt 0:01:27]} Nc5 {[%emt 0:54:22]} 31. Nxb4 {[%emt 0:02:58]} Nxa4 {[%emt 0:00:00]} 32. b3 {[%emt 0:01:47]} Nb6 {[%emt 0:00:00]} 33. Nxa6 {[%emt 0:01:01]} Nc6 {[%emt 0:00:00]} 34. Nxc6 {[%emt 0:01:57]} Bxc6 {[%emt 0:00:00]} 35. Nb8 {[%emt 0:01:59]} Be8 {[%emt 0:00:00]} 36. e5 {[%emt 0:00:28]} f6 {[%emt 0:00:00]} 37. f4 {[%emt 0:00:23]} Nd7 {[%emt 0:00:00]} 38. Nxd7 {[%emt 0:01:07]} Bxd7 {[%emt 0:00:00]} 39. b4 {[%emt 0:00:27]} Kf8 {[%emt 0:00:00]} 40. b5 {[%emt 0:00:29]} Ke8 {[%emt 0:00:00]} 41. b6 {[%emt 0:10:23]} Bc8 {[%emt 0:00:00]} 42. Bf3 {[%emt 0:00:00]} 1-0

[Event "VIII Open Semana Santa-B 2024"]
[Site "San Vicente del Raspeig"]
[Date "2024.04.01"]
[Round "9.2"]
[White "Amoros Moran, Jose Joaquin"]
[Black "Vila Castillo, Jaime"]
[Result "0-1"]
[ECO "B30"]
[WhiteElo "1883"]
[BlackElo "1812"]
[Annotator "NA RC"]
[PlyCount "150"]
[EventDate "2024.03.27"]
[EventType "swiss"]
[EventCountry "ESP"]
[SourceTitle "playchess.com"]
[Source "ChessBase"]
[SourceQuality "1"]
[TimeControl "5400+30"]

1. e4 {[%emt 0:06:21]} c5 {[%emt 0:00:12]} 2. Nf3 {[%emt 0:00:06]} Nc6 {[%emt 0:00:07]} 3. Bb5 {[%emt 0:00:06]} e6 {[%emt 0:00:11]} 4. c3 {[%emt 0:01:40]} d5 {[%emt 0:03:45]} 5. Qe2 {[%emt 0:02:25]} dxe4 {[%emt 0:02:53]} 6. Bxc6+ {[%emt 0:00:39]} bxc6 {[%emt 0:00:02]} 7. Qxe4 {[%emt 0:00:11]} Qd5 {[%emt 0:00:12]} 8. Qe2 {[%emt 0:01:01]} Nf6 {[%emt 0:01:22]} 9. c4 {[%emt 0:00:42]} Qe4 {[%emt 0:03:10]} 10. d3 {[%emt 0:04:25]} Qxe2+ {[%emt 0:00:13]} 11. Kxe2 {[%emt 0:00:02]} Bd6 {[%emt 0:02:55]} 12. Nc3 {[%emt 0:00:21]} O-O {[%emt 0:05:03]} 13. b3 {[%emt 0:02:57]} e5 {[%emt 0:05:27]} 14. Nd2 {[%emt 0:01:28]} Bf5 {[%emt 0:00:33]} 15. f3 {[%emt 0:01:55]} Bc7 {[%emt 0:03:03]} 16. Na4 {[%emt 0:06:17]} Bd6 {[%emt 0:05:31]} 17. Ba3 {[%emt 0:01:34]} Nd7 {[%emt 0:00:16]} 18. Ne4 {[%emt 0:04:49]} Bxe4 {[%emt 0:00:09]} 19. dxe4 {[%emt 0:00:07]} Rfd8 {[%emt 0:04:47]} 20. Rhd1 {[%emt 0:01:46]} Nb6 {[%emt 0:01:48]} 21. Nxc5 {[%emt 0:13:00]} Be7 {[%emt 0:01:39]} 22. Rxd8+ {[%emt 0:03:43]} Rxd8 {[%emt 0:00:07]} 23. Nb7 {[%emt 0:01:34]} Rd7 {[%emt 0:02:08]} 24. Bxe7 {[%emt 0:03:39]} Rxb7 {[%emt 0:01:07]} 25. Rd1 {[%emt 0:01:02]} f6 {[%emt 0:00:10]} 26. Ba3 {[%emt 0:02:04]} Rd7 {[%emt 0:02:40]} 27. Rxd7 {[%emt 0:00:56]} Nxd7 {[%emt 0:00:02]} 28. c5 {[%emt 0:01:28]} Kf7 {[%emt 0:01:21]} 29. g4 {[%emt 0:01:32]} Ke6 {[%emt 0:01:04]} 30. Kd3 {[%emt 0:00:19]} Nb8 {[%emt 0:00:24]} 31. b4 {[%emt 0:01:10]} Na6 {[%emt 0:00:27]} 32. Kc4 {[%emt 0:01:32]} Nc7 {[%emt 0:00:12]} 33. Bb2 {[%emt 0:00:21]} g6 {[%emt 0:01:19]} 34. a4 {[%emt 0:00:20]} a6 {[%emt 0:00:06]} 35. g5 {[%emt 0:16:10]} fxg5 {[%emt 0:01:20]} 36. Bc1 {[%emt 0:00:11]} h6 {[%emt 0:00:07]} 37. h3 {[%emt 0:00:16]} Kf6 {[%emt 0:01:30]} 38. Be3 {[%emt 0:00:08]} Ke6 {[%emt 0:00:08]} 39. Bg1 {[%emt 0:00:49]} Kf6 {[%emt 0:00:27]} 40. Bf2 {[%emt 0:00:14]} Ke6 {[%emt 0:00:15]} 41. Bg3 {[%emt 0:00:52]} Kf6 {[%emt 0:00:19]} 42. Bf2 {[%emt 0:02:08]} Ke6 {[%emt 0:00:09]} 43. Be3 {[%emt 0:00:11]} Kf6 {[%emt 0:00:07]} 44. Kd3 {[%emt 0:00:02]} Ke7 {[%emt 0:01:39]} 45. Ke2 {[%emt 0:01:04]} Ne6 {[%emt 0:00:32]} 46. Kf2 {[%emt 0:03:20]} Nf4 {[%emt 0:05:48]} 47. Kg3 {[%emt 0:00:27]} Nh5+ {[%emt 0:08:24]} 48. Kh2 {[%emt 0:01:41]} Nf4 {[%emt 0:03:23]} 49. Bd2 {[%emt 0:01:18]} Ne6 {[%emt 0:01:23]} 50. Kg3 {[%emt 0:01:58]} Nd4 {[%emt 0:00:33]} 51. Kg2 {[%emt 0:03:38]} Ne2 {[%emt 0:00:40]} 52. Kh2 {[%emt 0:05:13]} Nf4 {[%emt 0:01:06]} 53. Kg3 {[%emt 0:02:18]} Nh5+ {[%emt 0:01:03]} 54. Kh2 {[%emt 0:01:33]} Nf6 {[%emt 0:04:11]} 55. h4 {[%emt 0:01:38]} gxh4 {[%emt 0:01:41]} 56. Bxh6 {[%emt 0:00:01]} Nh7 {[%emt 0:00:14]} 57. Kh3 {[%emt 0:01:29]} g5 {[%emt 0:00:01]} 58. Kg4 {[%emt 0:00:44]} Ke6 {[%emt 0:04:44]} 59. Kh3 {[%emt 0:00:11]} Kf6 {[%emt 0:03:04]} 60. Kg4 {[%emt 0:00:17]} Kg6 {[%emt 0:01:53]} 61. b5 {[%emt 0:00:46]} axb5 {[%emt 0:01:47]} 62. a5 {[%emt 0:00:27]} b4 {[%emt 0:00:05]} 63. a6 {[%emt 0:00:01]} b3 {[%emt 0:00:09]} 64. a7 {[%emt 0:00:03]} b2 {[%emt 0:00:05]} 65. a8=Q {[%emt 0:00:08]} b1=Q {[%emt 0:00:08]} 66. Qe8+ {[%emt 0:01:27]} Kxh6 {[%emt 0:00:12]} 67. Qf7 {[%emt 0:01:07]} Qb8 {[%emt 0:03:13]} 68. Qe6+ {[%emt 0:00:28]} Kg7 {[%emt 0:00:07]} 69. Qe7+ {[%emt 0:00:33]} Kg6 {[%emt 0:01:08]} 70. Qe6+ {[%emt 0:00:27]} Nf6+ {[%emt 0:00:02]} 71. Kh3 {[%emt 0:00:06]} Qb1 {[%emt 0:00:39]} 72. Kh2 {[%emt 0:00:56]} Qc2+ {[%emt 0:00:14]} 73. Kh3 {[%emt 0:00:16]} Qf2 {[%emt 0:00:31]} 74. Qf5+ {[%emt 0:00:04]} Kf7 {[%emt 0:00:07]} 75. Qxe5 {[%emt 0:00:25]} Qxf3+ {[%emt 0:00:17]} 0-1

[Event "VIII Open Semana Santa-B 2024"]
[Site "San Vicente del Raspeig"]
[Date "2024.04.01"]
[Round "9.3"]
[White "Martinez Mateos, Saul"]
[Black "Garcia Ruano, Juan Carlos"]
[Result "1/2-1/2"]
[ECO "B46"]
[WhiteElo "1754"]
[BlackElo "1885"]
[Annotator "NA RC"]
[PlyCount "63"]
[EventDate "2024.03.27"]
[EventType "swiss"]
[EventCountry "ESP"]
[SourceTitle "playchess.com"]
[Source "ChessBase"]
[SourceQuality "1"]
[TimeControl "5400+30"]

1. e4 {[%emt 0:00:14]} c5 {[%emt 0:00:09]} 2. Nf3 {[%emt 0:00:17]} Nc6 {[%emt 0:00:06]} 3. d4 {[%emt 0:00:08]} cxd4 {[%emt 0:00:08]} 4. Nxd4 {[%emt 0:00:07]} e6 {[%emt 0:01:14]} 5. Nc3 {[%emt 0:06:18]} a6 {[%emt 0:00:54]} 6. a3 {[%emt 0:01:00]} Nf6 {[%emt 0:00:52]} 7. Be3 {[%emt 0:01:32] 7.Nxc6 deserves study.} Be7 {[%emt 0:00:58]} 8. Qe2 $146 {[%emt 0:02:57] B46: Sicilian: Taimanov: 5 Nc3 a6.} ({Predecessor:} 8. f4 d5 9. e5 Nd7 10. Qd2 Qc7 11. Be2 O-O 12. O-O Nxd4 13. Bxd4 Bc5 14. Rad1 Qb6 15. Bxc5 Nxc5 {1-0 Fedoseev,V (2681)-Grachev,B (2621) Riga Tal Memorial blitz 2019 (12)}) 8... Qa5 {[%emt 0:02:44]} 9. Nb3 {[%emt 0:03:40]} Qh5 {[%emt 0:00:55]} 10. f3 {[%emt 0:06:45]} O-O {[%emt 0:00:34]} 11. h4 {[%emt 0:09:15]} Qe5 {[%emt 0:05:16]} 12. g4 {[%emt 0:11:23]} d5 {[%emt 0:02:10]} 13. f4 {[%emt 0:01:23]} Qc7 {[%emt 0:00:31]} 14. e5 {[%emt 0:02:24]} Nd7 {[%emt 0:00:26]} 15. g5 {[%emt 0:06:15]} Na5 {[%emt 0:00:28]} 16. Nxa5 {[%emt 0:11:20]} Qxa5 {[%emt 0:00:04]} 17. Qh5 {[%emt 0:02:47]} Bc5 {[%emt 0:01:42]} 18. Bxc5 {[%emt 0:00:35]} Qxc5 {[%emt 0:00:06]} 19. Bd3 {[%emt 0:02:18]} Qe3+ {[%emt 0:00:18]} 20. Ne2 {[%emt 0:00:15]} g6 {[%emt 0:00:24]} 21. Qg4 {[%emt 0:00:35]} Nc5 {[%emt 0:02:38]} 22. Rh3 {[%emt 0:03:19]} Nxd3+ {[%emt 0:00:07]} 23. cxd3 {[%emt 0:00:10]} Qb6 $16 {[%emt 0:00:08]} 24. Rb1 {[%emt 0:06:29]} Re8 {[%emt 0:09:41]} 25. h5 {[%emt 0:02:48]} Re7 {[%emt 0:00:13]} 26. hxg6 {[%emt 0:01:12]} fxg6 {[%emt 0:02:13]} 27. Qg1 {[%emt 0:02:18]} Qxg1+ {[%emt 0:00:51]} 28. Nxg1 {[%emt 0:00:06]} Rc7 {[%emt 0:00:33]} 29. Kd2 {[%emt 0:00:19]} Bd7 {[%emt 0:00:19]} 30. d4 {[%emt 0:00:54]} Rac8 {[%emt 0:00:17]} 31. Rc3 {[%emt 0:00:18]} b5 {[%emt 1:09:01]} 32. Nf3 {[%emt 0:17:09]} 1/2-1/2

[Event "VIII Open Semana Santa-B 2024"]
[Site "San Vicente del Raspeig"]
[Date "2024.04.01"]
[Round "9.4"]
[White "Jayawarna, Thisumi"]
[Black "Herrero Ferrando, Salvador"]
[Result "1/2-1/2"]
[ECO "C55"]
[WhiteElo "1774"]
[BlackElo "1854"]
[Annotator "NA"]
[PlyCount "37"]
[EventDate "2024.03.27"]
[EventType "swiss"]
[EventCountry "ESP"]
[SourceTitle "playchess.com"]
[Source "ChessBase"]
[SourceQuality "1"]
[TimeControl "5400+30"]

1. e4 {[%emt 0:00:03]} e5 {[%emt 0:00:18]} 2. Nf3 {[%emt 0:00:07]} Nc6 {[%emt 0:00:13]} 3. Bc4 {[%emt 0:00:00]} Nf6 {[%emt 0:01:14]} 4. d3 {[%emt 0:00:04]} Be7 {[%emt 0:00:29]} 5. c3 {[%emt 0:00:40]} O-O {[%emt 0:01:53]} 6. O-O {[%emt 0:01:31]} d5 {[%emt 0:05:48]} 7. exd5 {[%emt 0:01:35]} Nxd5 {[%emt 0:00:41]} 8. Re1 {[%emt 0:01:34]} Bg4 {[%emt 0:16:14]} 9. Nbd2 {[%emt 0:02:43]} Nb6 {[%emt 0:01:46]} 10. Bb5 {[%emt 0:02:51]} f6 {[%emt 0:01:45]} 11. Bxc6 {[%emt 0:10:53]} bxc6 {[%emt 0:00:28]} 12. h3 {[%emt 0:02:18]} Bh5 {[%emt 0:00:29]} 13. Ne4 {[%emt 0:02:24]} Re8 {[%emt 0:11:25]} 14. Ng3 {[%emt 0:06:09]} Bg6 {[%emt 0:03:37]} 15. d4 {[%emt 0:02:34]} exd4 {[%emt 0:03:20]} 16. Nxd4 {[%emt 0:05:03]} Qd5 {[%emt 0:02:52]} 17. Nge2 {[%emt 0:14:54]} Bf7 {[%emt 0:09:31]} 18. Nf4 {[%emt 0:02:38]} Qd7 {[%emt 0:00:58]} 19. Qc2 {[%emt 0:16:49]} 1/2-1/2

[Event "VIII Open Semana Santa-B 2024"]
[Site "San Vicente del Raspeig"]
[Date "2024.04.01"]
[Round "9.5"]
[White "Van Ree, Thailo"]
[Black "Carnero Rodriguez, Alvaro"]
[Result "1-0"]
[ECO "B07"]
[WhiteElo "1841"]
[BlackElo "1743"]
[Annotator "NA RC"]
[PlyCount "73"]
[EventDate "2024.03.27"]
[EventType "swiss"]
[EventCountry "ESP"]
[SourceTitle "playchess.com"]
[Source "ChessBase"]
[SourceQuality "1"]
[TimeControl "5400+30"]

1. d4 {[%emt 0:00:00]} Nf6 {[%emt 0:01:56]} 2. Nf3 {[%emt 0:00:07]} g6 {[%emt 0:00:14]} 3. Bg5 {[%emt 0:00:07]} Bg7 {[%emt 0:00:21]} 4. Nbd2 {[%emt 0:00:22]} d6 {[%emt 0:01:14]} 5. c3 {[%emt 0:00:18]} O-O {[%emt 0:00:37]} 6. e4 {[%emt 0:00:05]} Nbd7 {[%emt 0:03:44]} 7. Bd3 {[%emt 0:00:15]} e5 {[%emt 0:03:26]} 8. O-O {[%emt 0:01:08]} b6 {[%emt 0:05:18]} 9. a4 {[%emt 0:00:46]} Bb7 {[%emt 0:01:28]} 10. a5 {[%emt 0:01:54]} h6 {[%emt 0:04:36]} 11. Bh4 {[%emt 0:00:25]} g5 {[%emt 0:01:11]} 12. Bg3 {[%emt 0:00:08]} Nh5 {[%emt 0:01:48]} 13. dxe5 {[%emt 0:02:05]} Nxg3 {[%emt 0:02:30]} 14. hxg3 {[%emt 0:00:17]} Nxe5 {[%emt 0:03:58]} 15. Nxe5 {[%emt 0:00:43]} dxe5 {[%emt 0:02:12]} 16. Qe2 {[%emt 0:04:39]} Qd6 {[%emt 0:04:22]} 17. Nc4 {[%emt 0:11:12]} Qe7 {[%emt 0:05:48]} 18. Ne3 {[%emt 0:00:22]} Bc8 {[%emt 0:08:23]} 19. axb6 {[%emt 0:01:06]} cxb6 {[%emt 0:00:22]} 20. Nd5 {[%emt 0:00:32]} Qc5 {[%emt 0:01:50]} 21. b4 {[%emt 0:00:39]} Qd6 {[%emt 0:01:31]} 22. Ba6 {[%emt 0:04:12]} Be6 {[%emt 0:08:51]} 23. Bb7 {[%emt 0:03:31]} Bxd5 {[%emt 0:01:06]} 24. Bxd5 {[%emt 0:05:56]} Rac8 {[%emt 0:01:28]} 25. Rxa7 {[%emt 0:00:15]} Rxc3 {[%emt 0:00:56]} 26. Qa2 {[%emt 0:01:57]} Rc7 {[%emt 0:02:09]} 27. b5 {[%emt 0:00:42]} Rxa7 {[%emt 0:01:49]} 28. Qxa7 {[%emt 0:00:12]} Qc5 {[%emt 0:00:37]} 29. Qd7 {[%emt 0:01:36]} Bf6 {[%emt 0:01:55]} 30. Ra1 {[%emt 0:01:38]} Qe7 {[%emt 0:04:06]} 31. Qc6 {[%emt 0:01:35]} Rb8 {[%emt 0:03:34]} 32. Ra6 {[%emt 0:00:21]} Qd8 {[%emt 0:02:31]} 33. Ra7 {[%emt 0:00:33]} Rc8 {[%emt 0:04:44]} 34. Bxf7+ {[%emt 0:01:34]} Kf8 {[%emt 0:01:07]} 35. Qe6 {[%emt 0:01:47]} Rc7 {[%emt 0:02:11]} 36. Rxc7 {[%emt 0:00:12]} Qxc7 {[%emt 0:00:06]} 37. Qe8+ {[%emt 0:00:04]} 1-0

[Event "VIII Open Semana Santa-B 2024"]
[Site "San Vicente del Raspeig"]
[Date "2024.04.01"]
[Round "9.6"]
[White "Pardo Ruiz, Beatriz"]
[Black "Latre Rodriguez, Francisco"]
[Result "1/2-1/2"]
[ECO "C54"]
[WhiteElo "1757"]
[BlackElo "1780"]
[Annotator "NA RC"]
[PlyCount "53"]
[EventDate "2024.03.27"]
[EventType "swiss"]
[EventCountry "ESP"]
[SourceTitle "playchess.com"]
[Source "ChessBase"]
[SourceQuality "1"]
[TimeControl "5400+30"]

1. e4 {[%emt 0:00:03]} e5 {[%emt 0:00:03]} 2. Nf3 {[%emt 0:00:05]} Nc6 {[%emt 0:00:03]} 3. Bc4 {[%emt 0:00:06]} Bc5 {[%emt 0:00:05]} 4. c3 {[%emt 0:00:05]} Nf6 {[%emt 0:00:05]} 5. d4 {[%emt 0:00:09]} exd4 {[%emt 0:00:06]} 6. e5 {[%emt 0:00:06]} d5 {[%emt 0:00:08]} 7. Bb5 {[%emt 0:00:09]} Ne4 {[%emt 0:00:12]} 8. cxd4 {[%emt 0:00:07]} Bb6 {[%emt 0:00:04]} 9. Nc3 {[%emt 0:00:33]} O-O {[%emt 0:00:13]} 10. Be3 {[%emt 0:01:38]} Be6 {[%emt 0:02:45]} 11. O-O {[%emt 0:01:44]} Bg4 {[%emt 0:04:43]} 12. Be2 {[%emt 0:08:45]} Qd7 {[%emt 0:05:54]} 13. h3 {[%emt 0:07:43]} Bh5 {[%emt 0:02:23]} 14. a3 {[%emt 0:07:25]} Rad8 {[%emt 0:02:32]} 15. Nd2 {[%emt 0:06:48]} Bxe2 {[%emt 0:03:09]} 16. Nxe2 {[%emt 0:00:19]} h6 {[%emt 0:09:19]} 17. Qc2 {[%emt 0:06:13]} Nxd2 {[%emt 0:02:52]} 18. Qxd2 {[%emt 0:00:25]} Na5 {[%emt 0:06:13]} 19. Qd3 {[%emt 0:02:56]} Qa4 {[%emt 0:08:40]} 20. Nc1 {[%emt 0:01:37]} Qc4 {[%emt 0:05:55]} 21. Qd2 {[%emt 0:05:02]} Qc6 {[%emt 0:05:44]} 22. b3 {[%emt 0:00:48]} Qe6 {[%emt 0:01:15]} 23. f4 {[%emt 0:02:56]} g6 {[%emt 0:03:34]} 24. g4 {[%emt 0:04:02]} f5 {[%emt 0:01:38]} 25. Qg2 {[%emt 0:01:34]} Kh7 {[%emt 0:01:20]} 26. g5 {[%emt 0:00:54]} h5 {[%emt 0:00:31]} 27. h4 {[%emt 0:41:48]} 1/2-1/2

[Event "VIII Open Semana Santa-B 2024"]
[Site "San Vicente del Raspeig"]
[Date "2024.04.01"]
[Round "9.7"]
[White "Zlyvko, Myroslav"]
[Black "Elizondo Marquet, Juan Marcos"]
[Result "1/2-1/2"]
[ECO "B50"]
[WhiteElo "1869"]
[BlackElo "1813"]
[Annotator "NA RC"]
[PlyCount "57"]
[EventDate "2024.03.27"]
[EventType "swiss"]
[EventCountry "ESP"]
[SourceTitle "playchess.com"]
[Source "ChessBase"]
[SourceQuality "1"]
[TimeControl "5400+30"]

1. e4 {[%emt 0:00:02]} c5 {[%emt 0:01:24]} 2. Nf3 {[%emt 0:00:05]} d6 {[%emt 0:00:06]} 3. g3 {[%emt 0:00:04]} Nc6 {[%emt 0:00:09]} 4. Bg2 {[%emt 0:00:03]} g6 {[%emt 0:00:09]} 5. O-O {[%emt 0:00:08]} Bg7 {[%emt 0:00:21]} 6. c3 {[%emt 0:00:15]} Nf6 {[%emt 0:00:45]} 7. Re1 {[%emt 0:00:12]} O-O {[%emt 0:00:16]} 8. h3 {[%emt 0:01:11]} Qc7 {[%emt 0:06:55]} 9. d4 {[%emt 0:01:20]} b6 {[%emt 0:02:23]} 10. Na3 {[%emt 0:04:59]} a6 {[%emt 0:01:52]} 11. Qe2 {[%emt 1:27:41]} Bb7 {[%emt 0:01:47]} 12. dxc5 {[%emt 0:00:00]} bxc5 {[%emt 0:02:05]} 13. Nc4 {[%emt 0:00:00]} Ne5 {[%emt 0:05:05]} 14. Nfxe5 {[%emt 0:00:00]} dxe5 {[%emt 0:00:16]} 15. a4 {[%emt 0:00:00]} a5 {[%emt 0:00:45]} 16. Na3 {[%emt 0:00:00]} Ba6 {[%emt 0:11:30]} 17. Nb5 {[%emt 0:00:00]} Bxb5 {[%emt 0:00:06]} 18. Qxb5 {[%emt 0:00:00]} c4 {[%emt 0:03:38]} 19. Bf1 {[%emt 0:00:00]} Rfc8 {[%emt 0:01:03]} 20. Rb1 {[%emt 0:00:00]} e6 {[%emt 0:07:36]} 21. Bd2 {[%emt 0:00:00]} Ne8 {[%emt 0:01:04]} 22. b4 {[%emt 0:00:00]} Nd6 {[%emt 0:00:36]} 23. Qc5 {[%emt 0:00:00]} Qxc5 {[%emt 0:01:06]} 24. bxc5 {[%emt 0:00:00]} Rxc5 {[%emt 0:00:30]} 25. Rb6 {[%emt 0:00:00]} Rd8 {[%emt 0:00:30]} 26. Bc1 {[%emt 0:00:00]} Rc7 {[%emt 0:00:30]} 27. Rd1 {[%emt 0:00:00]} Rcd7 {[%emt 0:00:30]} 28. Ba3 {[%emt 0:00:00]} Bf8 {[%emt 0:00:30]} 29. Bxd6 {[%emt 0:00:00]} 1/2-1/2